bitfinex/quotes_BTCUSD_20251011
["timestamp","ask_amount","ask_price","bid_price","bid_amount"]
[1760155246114,0.31329301,112560.0,112550.0,0.16019128]
[1760155246445,0.17768301,112560.0,112550.0,0.16019128]
[1760155246650,0.17768301,112560.0,112550.0,0.0009024]
[1760155246993,0.17768301,112560.0,112550.0,0.49928626]
[1760155247193,0.17754243,112570.0,112550.0,0.49928626]
[1760155247445,0.17768301,112560.0,112550.0,0.49928626]
[1760155247654,0.17758339,112560.0,112550.0,0.49928626]
[1760155248482,0.17758339,112560.0,112550.0,0.0009024]
[1760155248844,0.21970339,112560.0,112550.0,0.0009024]
[1760155249174,0.25122409,112560.0,112550.0,0.16019128]
[1760155250312,0.24054921,112560.0,112550.0,0.16019128]
[1760155250807,0.16629692,112560.0,112550.0,0.0009024]
[1760155251359,0.16629692,112560.0,112550.0,0.49928626]
[1760155251559,0.16579467,112560.0,112550.0,0.50772745]
[1760155251761,0.16579467,112560.0,112550.0,0.00934359]
[1760155251985,0.20683467,112560.0,112550.0,0.00934359]
[1760155252169,0.19477467,112560.0,112550.0,0.00934359]
[1760155252362,0.16579467,112560.0,112550.0,0.00934359]
[1760155254213,0.16579467,112560.0,112550.0,0.16863247]
[1760155254889,0.20441467,112560.0,112550.0,0.00934359]
[1760155255527,0.24578301,112560.0,112550.0,0.16918878]
[1760155256155,0.24573624,112560.0,112550.0,0.16918878]
[1760155256356,0.17768301,112560.0,112550.0,0.16918878]
[1760155256570,0.17763268,112560.0,112550.0,0.16918878]
[1760155256939,0.21625268,112560.0,112550.0,0.16918878]
[1760155257139,0.17763268,112560.0,112550.0,0.00934359]
[1760155258725,0.24573268,112560.0,112550.0,0.00934359]
[1760155258932,0.30741268,112560.0,112550.0,0.00934359]
[1760155259980,0.30691043,112560.0,112550.0,0.00934359]
[1760155261269,0.24523043,112560.0,112550.0,0.00934359]
[1760155261472,0.30691043,112560.0,112550.0,0.00934359]
[1760155261841,0.30746301,112560.0,112550.0,0.00934359]
[1760155262048,0.64746301,112560.0,112550.0,0.00934359]
[1760155262250,0.67819086,112560.0,112550.0,1e-08]
[1760155262486,1.17657472,112560.0,112550.0,1e-08]
[1760155262929,1.20157471,112560.0,112550.0,1e-08]
[1760155263157,1.3015747,112560.0,112550.0,1e-08]
[1760155263353,0.51771459,112540.0,112530.0,1e-08]
[1760155263529,1.04557845,112540.0,112530.0,0.00015067]
[1760155263727,1.14587845,112540.0,112530.0,0.00015067]
[1760155264255,0.64749459,112540.0,112530.0,0.00015067]
[1760155264591,1.14587845,112540.0,112530.0,0.00015067]
[1760155265212,0.64749459,112540.0,112530.0,0.00015067]
[1760155268666,0.41715652,112540.0,112530.0,0.00015067]
[1760155268868,0.30749459,112540.0,112530.0,0.00130404]
[1760155269074,0.24581459,112540.0,112530.0,0.00130404]
[1760155269677,0.17771459,112540.0,112530.0,0.00130404]
[1760155269885,0.24581459,112540.0,112530.0,0.00130404]
[1760155270082,0.17771459,112540.0,112530.0,0.00130404]
[1760155270931,0.24581459,112540.0,112530.0,0.00130404]
[1760155271569,0.17771459,112540.0,112530.0,0.50212255]
[1760155271767,0.17771459,112540.0,112530.0,0.4996879]
[1760155271967,0.21633459,112540.0,112530.0,0.00130404]
[1760155272300,0.24581459,112540.0,112530.0,0.00130404]
[1760155272440,0.24581459,112540.0,112510.0,1.01288868]
[1760155272441,0.17774617,112520.0,112510.0,1.01288868]
[1760155272635,0.17774617,112520.0,112510.0,0.82639055]
[1760155273151,0.17774617,112520.0,112510.0,0.00015075]
[1760155273811,0.17774617,112520.0,112510.0,0.49853461]
[1760155274065,0.17773038,112530.0,112510.0,0.67629658]
[1760155274310,0.17773038,112530.0,112520.0,0.49838386]
[1760155274535,0.17773038,112530.0,112510.0,0.67629658]
[1760155274724,0.17774617,112520.0,112510.0,0.67629658]
[1760155275031,0.17773038,112530.0,112510.0,0.67729658]
[1760155275229,0.18660031,112540.0,112520.0,0.67613003]
[1760155275848,0.17773038,112530.0,112520.0,0.49838386]
[1760155277260,0.17773038,112530.0,112510.0,0.52680081]
[1760155277478,0.17773038,112530.0,112520.0,0.49838386]
[1760155277901,0.17773038,112530.0,112520.0,0.67613003]
[1760155278366,0.18755132,112540.0,112520.0,0.67613003]
[1760155278564,0.00095101,112540.0,112530.0,1.01611424]
[1760155279106,0.00095101,112540.0,112530.0,1.41611424]
[1760155280286,0.00095101,112540.0,112530.0,1.44626614]
[1760155281116,0.00095101,112540.0,112530.0,1.44726614]
[1760155281556,0.00095101,112540.0,112530.0,0.94788228]
[1760155281829,0.00095101,112540.0,112530.0,1.44826614]
[1760155283901,0.00095101,112540.0,112530.0,1.4750008]
[1760155284646,0.00095101,112540.0,112530.0,0.97661694]
[1760155284870,0.00095101,112540.0,112530.0,1.4750008]
[1760155285452,0.00095101,112540.0,112530.0,1.6328821]
[1760155285974,0.1663132,112570.0,112550.0,0.34]
[1760155286195,0.1663132,112570.0,112550.0,0.99626516]
[1760155286196,0.17768471,112560.0,112550.0,0.99626516]
[1760155286394,0.17519656,112570.0,112550.0,1.17396396]
[1760155286650,0.18661117,112590.0,112570.0,0.17766722]
[1760155286797,0.18661117,112590.0,112570.0,0.83393238]
[1760155287204,0.18711263,112590.0,112570.0,0.83393238]
[1760155287409,0.00050146,112590.0,112580.0,0.17765144]
[1760155287818,0.00050146,112590.0,112570.0,1.05626516]
[1760155287819,0.17813811,112590.0,112570.0,1.05626516]
[1760155288125,0.17765144,112580.0,112570.0,1.39626516]
[1760155288327,0.00050146,112590.0,112580.0,0.17765144]
[1760155288770,0.00050146,112590.0,112580.0,0.54780334]
[1760155289301,0.00050146,112590.0,112580.0,0.94780334]
[1760155289737,0.00050146,112590.0,112580.0,0.97452724]
[1760155290311,0.00050146,112590.0,112580.0,1.6217924]
[1760155291087,0.00050146,112590.0,112580.0,1.6237924]
[1760155293914,0.00050146,112590.0,112580.0,0.96752724]
[1760155294065,0.00050146,112590.0,112580.0,1.6237924]
[1760155294267,0.00338339,112590.0,112580.0,1.6237924]
[1760155296143,0.17759009,112660.0,112640.0,0.17755681]
[1760155296261,0.17754105,112650.0,112640.0,0.65626516]
[1760155297074,0.18661687,112660.0,112640.0,0.83382197]
[1760155297290,0.17754105,112650.0,112640.0,0.65626516]
[1760155298254,0.18661687,112660.0,112640.0,0.83382197]
[1760155298415,0.17754105,112650.0,112640.0,0.17755681]
[1760155298748,0.17754105,112650.0,112640.0,0.83382197]
[1760155298949,0.17754105,112650.0,112640.0,0.65626516]
[1760155299126,0.17754105,112650.0,112640.0,0.65726516]
[1760155299514,0.17755681,112640.0,112630.0,1.39626516]
[1760155299914,0.21603687,112660.0,112630.0,1.39626516]
[1760155300120,0.17754192,112650.0,112640.0,0.00242283]
[1760155300723,0.17755681,112640.0,112630.0,1.17483733]
[1760155300946,0.17754192,112650.0,112630.0,0.51857217]
[1760155301189,0.17755681,112640.0,112630.0,0.51857217]
[1760155301382,0.17755681,112640.0,112630.0,1.17483733]
[1760155302015,0.17755681,112640.0,112630.0,0.99726516]
[1760155302218,0.17755681,112640.0,112630.0,0.99626516]
[1760155302429,0.17757258,112630.0,112620.0,1.05626516]
[1760155302633,0.17758835,112620.0,112610.0,0.65626516]
[1760155302805,0.17757258,112630.0,112610.0,0.83386925]
[1760155303012,0.17757258,112630.0,112610.0,1.23386925]
[1760155303214,0.16070543,112630.0,112610.0,1.23386925]
[1760155303459,0.16070543,112630.0,112610.0,1.17386925]
[1760155303460,0.17412615,112620.0,112610.0,1.17386925]
[1760155303578,0.17412615,112620.0,112610.0,0.99626516]
[1760155303778,0.17427656,112620.0,112610.0,0.99626516]
[1760155304201,0.00015041,112620.0,112610.0,1.17486928]
[1760155304635,0.00015041,112620.0,112610.0,1.20502118]
[1760155305760,0.17773876,112620.0,112610.0,0.99626516]
[1760155306052,0.00015041,112620.0,112610.0,1.17386928]
[1760155306259,0.00015041,112620.0,112610.0,1.17486928]
[1760155306664,0.00015041,112620.0,112610.0,1.20502118]
[1760155307030,0.00015041,112620.0,112610.0,0.54875602]
[1760155307230,0.00015041,112620.0,112610.0,1.20502118]
[1760155307689,0.17773876,112620.0,112610.0,0.54875602]
[1760155307832,0.17773876,112620.0,112610.0,0.99726516]
[1760155308037,0.17946708,112620.0,112610.0,0.99726516]
[1760155308777,0.17946708,112620.0,112610.0,0.001]
[1760155309000,0.25143708,112620.0,112610.0,0.001]
[1760155309401,0.31374708,112620.0,112610.0,0.001]
[1760155309637,0.17763566,112590.0,112580.0,0.64185219]
[1760155309842,0.17763566,112590.0,112570.0,0.84280636]
[1760155310054,0.17763566,112590.0,112570.0,1.24280636]
[1760155310828,0.17763566,112590.0,112570.0,0.5865412]
[1760155311008,0.17763566,112590.0,112570.0,1.24280636]
[1760155311416,0.17763566,112590.0,112570.0,0.84280636]
[1760155311813,0.17763566,112590.0,112570.0,1.24280636]
[1760155312514,0.17763566,112590.0,112570.0,1.24380636]
[1760155312901,0.17786001,112590.0,112570.0,1.24380636]
[1760155313104,0.17765144,112580.0,112570.0,0.001]
[1760155313686,0.30444144,112580.0,112570.0,0.001]
[1760155313874,0.30444144,112580.0,112570.0,0.00077565]
[1760155314275,0.24618176,112580.0,112570.0,0.00077565]
[1760155314474,0.24618176,112580.0,112540.0,0.25698648]
[1760155314475,0.17768301,112560.0,112540.0,0.18655464]
[1760155314861,0.1776988,112550.0,112530.0,0.83395244]
[1760155315001,0.1776988,112550.0,112540.0,0.41043184]
[1760155315422,0.1776988,112550.0,112540.0,0.34]
[1760155315627,0.1865635,112570.0,112540.0,1.17497975]
[1760155315852,0.17768301,112560.0,112550.0,0.0301519]
[1760155317027,0.1865635,112570.0,112550.0,0.2078507]
[1760155317245,0.17768301,112560.0,112550.0,0.0301519]
[1760155318165,0.21943301,112560.0,112550.0,0.001]
[1760155318371,0.24958301,112560.0,112550.0,0.001]
[1760155318603,0.17768301,112560.0,112550.0,0.001]
[1760155319786,0.24958301,112560.0,112550.0,0.001]
[1760155320012,0.17768301,112560.0,112550.0,0.001]
[1760155320596,0.18668433,112580.0,112560.0,0.17768301]
[1760155320819,0.17766722,112570.0,112560.0,0.65626516]
[1760155321193,0.17768301,112560.0,112550.0,0.0311519]
[1760155321389,0.1776988,112550.0,112540.0,0.99626516]
[1760155321591,0.1776988,112550.0,112540.0,1.20413165]
[1760155321796,0.1776988,112550.0,112540.0,1.60413165]
[1760155322001,0.17768301,112560.0,112540.0,1.60413165]
[1760155322220,0.1776988,112550.0,112540.0,1.60413165]
[1760155322418,0.17768301,112560.0,112540.0,1.60413165]
[1760155322635,0.17768301,112560.0,112540.0,1.60513165]
[1760155323036,0.1776988,112550.0,112540.0,1.60513165]
[1760155323822,0.17768301,112560.0,112540.0,1.60413165]
[1760155323996,0.1776988,112550.0,112540.0,1.08641706]
[1760155324197,0.20783301,112560.0,112540.0,1.26513165]
[1760155324401,0.1776988,112550.0,112540.0,1.26513165]
[1760155324608,0.1776988,112550.0,112540.0,1.08641706]
[1760155324820,0.2495988,112550.0,112540.0,0.0301519]
[1760155324994,0.1776988,112550.0,112540.0,0.0311519]
[1760155325195,0.1776988,112550.0,112540.0,0.4311519]
[1760155325401,0.1776988,112550.0,112540.0,0.60886649]
[1760155325606,0.1776988,112550.0,112540.0,0.4311519]
[1760155325969,0.1776988,112550.0,112540.0,0.60886649]
[1760155326165,0.2194488,112550.0,112540.0,0.4311519]
[1760155326381,0.2495988,112550.0,112540.0,0.001]
[1760155326595,0.3087388,112550.0,112540.0,0.001]
[1760155326799,0.63913667,112550.0,112540.0,0.001]
[1760155327003,0.63913667,112550.0,112520.0,0.01501]
[1760155327004,0.17773038,112530.0,112520.0,0.01501]
[1760155327426,0.17772696,112540.0,112520.0,0.10877]
[1760155327635,0.17773038,112530.0,112520.0,0.0534]
[1760155327989,0.17769971,112550.0,112530.0,0.20788228]
[1760155328127,0.17769971,112550.0,112530.0,0.20838374]
[1760155328338,0.17769971,112550.0,112540.0,0.1440919]
[1760155328339,0.1776988,112550.0,112540.0,0.1440919]
[1760155328538,0.1776988,112550.0,112540.0,0.0887219]
[1760155328759,0.2194488,112550.0,112540.0,0.0887219]
[1760155328964,0.2495988,112550.0,112540.0,0.0887219]
[1760155329179,0.2495988,112550.0,112540.0,0.02018]
[1760155329409,0.2495988,112550.0,112530.0,0.02068146]
[1760155329410,0.17771459,112540.0,112530.0,0.02068146]
[1760155329549,0.17771459,112540.0,112530.0,0.00050146]
[1760155329550,0.54786459,112540.0,112530.0,0.00050146]
[1760155329758,0.64875459,112540.0,112530.0,0.00050146]
[1760155330202,0.58961459,112540.0,112530.0,0.02068146]
[1760155330407,0.64875459,112540.0,112530.0,0.02068146]
[1760155330551,0.64875459,112540.0,112530.0,0.00050146]
[1760155332398,0.17777777,112500.0,112490.0,0.01541]
[1760155332602,0.17777777,112500.0,112490.0,0.01556075]
[1760155332603,0.20792777,112500.0,112490.0,0.01556075]
[1760155332778,0.24967777,112500.0,112490.0,0.02075205]
[1760155333731,0.30881777,112500.0,112490.0,0.00574205]
[1760155334239,0.64881777,112500.0,112490.0,0.00674205]
[1760155334643,0.64881777,112500.0,112490.0,0.00574205]
[1760155337186,0.20792777,112500.0,112490.0,0.06431205]
[1760155337388,0.17777777,112500.0,112490.0,0.22026579]
[1760155337633,0.21679575,112520.0,112500.0,0.0301519]
[1760155337819,0.18664575,112520.0,112510.0,0.11394]
[1760155337986,0.18664575,112520.0,112510.0,0.07694]
[1760155338539,0.18664575,112520.0,112510.0,0.02157]
[1760155339667,0.17776197,112510.0,112490.0,0.02073075]
[1760155339833,0.20792777,112500.0,112490.0,0.05088265]
[1760155340025,0.24967777,112500.0,112490.0,0.02073075]
[1760155340811,0.30881777,112500.0,112490.0,0.00055075]
[1760155341037,0.24967777,112500.0,112490.0,0.00155075]
[1760155341556,0.30881777,112500.0,112490.0,0.00055075]
[1760155343155,0.64881777,112500.0,112490.0,0.00055075]
[1760155345567,0.51779358,112490.0,112480.0,1e-08]
[1760155345784,0.54829358,112490.0,112480.0,0.00590275]
[1760155345989,0.65251358,112490.0,112480.0,0.00590275]
[1760155347541,1.15190952,112490.0,112480.0,0.00590275]
[1760155348204,1.15190952,112490.0,112480.0,1e-08]
[1760155348556,0.17784101,112460.0,112450.0,0.07043184]
[1760155348802,0.20834101,112460.0,112450.0,0.10058374]
[1760155348975,0.17784101,112460.0,112450.0,0.12956374]
[1760155349180,0.17784101,112460.0,112450.0,0.14767374]
[1760155350005,0.17784101,112460.0,112450.0,0.0591319]
[1760155350632,0.20834101,112460.0,112450.0,0.0591319]
[1760155351072,0.31256101,112460.0,112450.0,0.0301519]
[1760155351825,0.25050101,112460.0,112450.0,0.0301519]
[1760155352178,0.25050101,112460.0,112450.0,0.0591319]
[1760155352390,0.25050101,112460.0,112450.0,0.0301519]
[1760155353562,0.25050101,112460.0,112450.0,0.0591319]
[1760155353770,0.20834101,112460.0,112450.0,0.0591319]
[1760155353967,0.25050101,112460.0,112450.0,0.0301519]
[1760155354186,0.25050101,112460.0,112450.0,0.03188372]
[1760155354379,0.20834101,112460.0,112450.0,0.06086372]
[1760155355063,0.21719984,112480.0,112450.0,0.25683054]
[1760155355424,0.21719984,112480.0,112460.0,0.0482619]
[1760155355425,0.17782519,112470.0,112460.0,0.0482619]
[1760155355618,0.17782519,112470.0,112460.0,0.0591319]
[1760155355997,0.31254519,112470.0,112460.0,0.0301519]
[1760155356138,0.25048519,112470.0,112460.0,0.0301519]
[1760155356335,0.25048519,112470.0,112460.0,0.0591319]
[1760155356573,0.17782519,112470.0,112460.0,0.0591319]
[1760155356772,0.20832519,112470.0,112460.0,0.0591319]
[1760155357426,0.17782519,112470.0,112460.0,0.0591319]
[1760155357635,0.17782519,112470.0,112460.0,0.0193919]
[1760155357846,0.17782519,112470.0,112460.0,0.0151319]
[1760155358378,0.17785134,112460.0,112440.0,0.60486783]
[1760155358587,0.17785134,112460.0,112440.0,0.60024124]
[1760155358805,0.17785134,112460.0,112450.0,0.00682]
[1760155359008,0.17785682,112450.0,112440.0,0.41811]
[1760155359216,0.17785682,112450.0,112440.0,0.60706264]
[1760155359404,0.17785682,112450.0,112440.0,0.02493]
[1760155359893,0.17785682,112450.0,112440.0,0.0550819]
[1760155360529,0.17785682,112450.0,112440.0,0.0560819]
[1760155360948,0.17785682,112450.0,112440.0,0.0626512]
[1760155361153,0.17785682,112450.0,112440.0,0.0583912]
[1760155362994,0.31257682,112450.0,112440.0,0.0515712]
[1760155363197,0.25051682,112450.0,112440.0,0.0515712]
[1760155363393,0.17785682,112450.0,112440.0,0.0583912]
[1760155364831,0.31257682,112450.0,112440.0,0.0515712]
[1760155365458,0.25051682,112450.0,112440.0,0.0214193]
[1760155365662,0.31257682,112450.0,112440.0,0.0033093]
[1760155366269,0.65257682,112450.0,112440.0,0.0033093]
[1760155366679,1.15197276,112450.0,112440.0,0.0033093]
[1760155366917,1.15197276,112450.0,112440.0,1e-08]
[1760155367118,0.65257682,112450.0,112440.0,1e-08]
[1760155367324,1.11726857,112440.0,112430.0,1e-08]
[1760155367532,1.17276856,112440.0,112430.0,1e-08]
[1760155367741,0.77759262,112440.0,112430.0,1e-08]
[1760155367942,0.67820034,112440.0,112430.0,1e-08]
[1760155368147,0.77820033,112440.0,112430.0,1e-08]
[1760155368349,0.65259264,112440.0,112430.0,1e-08]
[1760155369493,0.64151979,112440.0,112430.0,1e-08]
[1760155369645,1.14091573,112440.0,112430.0,1e-08]
[1760155370011,1.14191573,112440.0,112430.0,1e-08]
[1760155370438,0.17792011,112410.0,112400.0,0.06383185]
[1760155370640,0.20827011,112410.0,112400.0,0.06396593]
[1760155370840,0.30889011,112410.0,112400.0,0.06396593]
[1760155371437,0.24737011,112410.0,112400.0,0.09411783]
[1760155371677,0.20825428,112420.0,112410.0,0.0301519]
[1760155372076,0.20825428,112420.0,112410.0,0.0353219]
[1760155372279,0.21714595,112430.0,112410.0,0.0353219]
[1760155372438,0.18679595,112430.0,112410.0,0.71586795]
[1760155372637,0.17790428,112420.0,112410.0,0.53794784]
[1760155373050,0.18679595,112430.0,112410.0,0.53471784]
[1760155373265,0.20915876,112450.0,112430.0,0.20804036]
[1760155373465,0.17880876,112450.0,112440.0,0.50779594]
[1760155373669,0.17880876,112450.0,112440.0,0.50456594]
[1760155373888,0.17880876,112450.0,112440.0,0.00517]
[1760155374666,0.17880876,112450.0,112440.0,0.50456594]
[1760155374867,0.17880876,112450.0,112440.0,0.00517]
[1760155375307,0.00095194,112450.0,112440.0,0.68566858]
[1760155375539,0.17880876,112450.0,112440.0,0.68566858]
[1760155375654,0.00095194,112450.0,112440.0,0.71582048]
[1760155376958,0.00095194,112450.0,112440.0,1.05582048]
[1760155377335,0.00095194,112450.0,112440.0,1.45582048]
[1760155377535,0.00095194,112450.0,112440.0,1.45182048]
[1760155377956,0.00095194,112450.0,112440.0,1.45282048]
[1760155378326,0.00095194,112450.0,112440.0,1.45182048]
[1760155378726,0.00095194,112450.0,112440.0,1.45282048]
[1760155379748,0.17880876,112450.0,112440.0,1.45282048]
[1760155380095,0.00095194,112450.0,112440.0,1.45282048]
[1760155381199,0.21644695,112510.0,112480.0,0.20795946]
[1760155381420,0.17779358,112490.0,112480.0,0.0301519]
[1760155381645,0.17781138,112480.0,112470.0,0.0301519]
[1760155381892,0.17780938,112480.0,112470.0,0.20797709]
[1760155382098,0.17779358,112490.0,112470.0,0.60797709]
[1760155382729,0.17780938,112480.0,112470.0,0.60797709]
[1760155382951,0.17779358,112490.0,112470.0,0.60797709]
[1760155383145,0.17779358,112490.0,112480.0,0.17780938]
[1760155383503,0.17779358,112490.0,112470.0,0.68780846]
[1760155383707,0.17779358,112490.0,112480.0,0.49939594]
[1760155384116,0.1866676,112500.0,112490.0,0.0301519]
[1760155384315,0.18722828,112510.0,112490.0,0.70734142]
[1760155384483,0.18722828,112510.0,112500.0,0.52954784]
[1760155385099,0.18722828,112510.0,112500.0,0.0301519]
[1760155385706,0.25641828,112510.0,112500.0,0.0301519]
[1760155386149,0.25641828,112510.0,112480.0,0.18669984]
[1760155386150,0.17779358,112490.0,112480.0,0.52954784]
[1760155386361,0.17779358,112490.0,112480.0,0.70735722]
[1760155386768,0.18010212,112490.0,112480.0,0.52954784]
[1760155387897,0.18010212,112490.0,112480.0,0.53054784]
[1760155388719,0.18010212,112490.0,112480.0,0.70835722]
[1760155388924,0.18010212,112490.0,112480.0,0.53054784]
[1760155389666,0.24929212,112490.0,112480.0,0.4311519]
[1760155389865,0.24929212,112490.0,112480.0,0.0311519]
[1760155390554,0.24929212,112490.0,112480.0,0.001]
[1760155390555,0.30629212,112490.0,112480.0,0.001]
[1760155390729,0.17782519,112470.0,112460.0,1.00937921]
[1760155391143,0.17782245,112480.0,112470.0,0.0301519]
[1760155391696,0.24701245,112480.0,112470.0,0.0301519]
[1760155391903,0.20804378,112480.0,112470.0,0.0301519]
[1760155392102,0.24751378,112480.0,112470.0,0.0301519]
[1760155392541,0.20804378,112480.0,112470.0,0.0301519]
[1760155392739,0.24751378,112480.0,112470.0,0.0301519]
[1760155392975,0.24751378,112480.0,112460.0,0.64230782]
[1760155392976,0.17782519,112470.0,112460.0,0.64230782]
[1760155393448,0.17782519,112470.0,112460.0,0.64130782]
[1760155394613,0.17782519,112470.0,112460.0,0.64230782]
[1760155395072,0.24701519,112470.0,112460.0,0.11275998]
[1760155395473,0.30401519,112470.0,112460.0,0.11275998]
[1760155395912,0.24701519,112470.0,112460.0,0.11275998]
[1760155396103,0.30516967,112470.0,112460.0,0.001]
[1760155396512,0.17785348,112460.0,112440.0,1.18998056]
[1760155396669,0.17785348,112460.0,112450.0,0.49939594]
[1760155396866,0.17782856,112470.0,112450.0,0.70740466]
[1760155397084,0.17782856,112470.0,112460.0,0.49939594]
[1760155398600,0.17782519,112470.0,112460.0,0.70738885]
[1760155398968,0.17782519,112470.0,112460.0,0.52954784]
[1760155399664,0.24701519,112470.0,112460.0,0.49939594]
[1760155399843,0.17784101,112460.0,112450.0,0.61115592]
[1760155400017,0.24703101,112460.0,112450.0,0.61115592]
[1760155400224,0.24703101,112460.0,112450.0,0.49939594]
[1760155400443,0.20756101,112460.0,112450.0,0.49939594]
[1760155400610,0.17784101,112460.0,112450.0,0.61115592]
[1760155400811,0.00050133,112480.0,112460.0,0.2079797]
[1760155401016,0.00050133,112480.0,112470.0,0.67811025]
[1760155401254,0.00050133,112480.0,112470.0,0.17782519]
[1760155401435,0.00050133,112480.0,112470.0,0.67722113]
[1760155401606,0.00010631,112480.0,112470.0,0.70737303]
[1760155401808,0.00010631,112480.0,112470.0,1.04737303]
[1760155402615,0.00010631,112480.0,112470.0,1.44737303]
[1760155402840,0.00183787,112480.0,112470.0,1.44737303]
[1760155403009,0.00183787,112480.0,112470.0,1.65517302]
[1760155403210,0.17964725,112480.0,112470.0,1.47734783]
[1760155403412,0.00183787,112480.0,112470.0,1.65517302]
[1760155403615,0.00183787,112480.0,112470.0,1.65617302]
[1760155403819,0.17964725,112480.0,112470.0,1.47834783]
[1760155404023,0.24883725,112480.0,112470.0,0.86802804]
[1760155404245,0.24883725,112480.0,112470.0,0.66022805]
[1760155404669,0.17964725,112480.0,112470.0,0.66022805]
[1760155404868,0.17964725,112480.0,112470.0,0.69037995]
[1760155405790,0.17964725,112480.0,112470.0,0.86720514]
[1760155405791,0.00183787,112480.0,112470.0,0.86720514]
[1760155405990,0.17964725,112480.0,112470.0,0.86720514]
[1760155406370,0.00183787,112480.0,112470.0,0.86720514]
[1760155406697,0.17964725,112480.0,112470.0,0.86720514]
[1760155407372,0.22964725,112480.0,112470.0,0.86720514]
[1760155407587,0.05183787,112480.0,112470.0,1.42509307]
[1760155407932,0.22964725,112480.0,112470.0,1.42509307]
[1760155408341,0.22964725,112480.0,112470.0,1.24726788]
[1760155408551,0.22964725,112480.0,112470.0,1.42509307]
[1760155408738,0.05183787,112480.0,112470.0,1.42509307]
[1760155409102,0.05183787,112480.0,112470.0,1.26626096]
[1760155409432,0.22964725,112480.0,112470.0,1.24823795]
[1760155409858,0.22964725,112480.0,112470.0,0.59095408]
[1760155410065,0.30039725,112480.0,112470.0,0.81808605]
[1760155410440,0.22964725,112480.0,112470.0,0.81808605]
[1760155410852,0.22964725,112480.0,112470.0,0.99591124]
[1760155411050,0.05183787,112480.0,112470.0,1.02606314]
[1760155412081,0.03157652,112480.0,112470.0,1.02606314]
[1760155412721,0.1777942,112490.0,112480.0,0.0301519]
[1760155412895,0.17794447,112490.0,112480.0,0.0301519]
[1760155413122,0.17780938,112480.0,112470.0,0.68843577]
[1760155413475,0.24855938,112480.0,112470.0,0.68843577]
[1760155413694,0.24855938,112480.0,112470.0,0.0311519]
[1760155413895,0.17782519,112470.0,112460.0,1.09115091]
[1760155414299,0.17782519,112470.0,112460.0,0.03386704]
[1760155414502,0.17782519,112470.0,112460.0,0.69115091]
[1760155414757,0.20784938,112480.0,112460.0,0.86899192]
[1760155415071,0.17782519,112470.0,112460.0,0.86899192]
[1760155415201,0.17782519,112470.0,112460.0,1.09115091]
[1760155415390,0.17782519,112470.0,112460.0,1.26899192]
[1760155415793,0.17782519,112470.0,112460.0,0.69115091]
[1760155416061,0.17782519,112470.0,112460.0,0.69215091]
[1760155416471,0.17782519,112470.0,112460.0,0.69115091]
[1760155416668,0.17782519,112470.0,112460.0,0.86899192]
[1760155416830,0.17782519,112470.0,112460.0,0.86999192]
[1760155417451,0.17782519,112470.0,112460.0,1.09215091]
[1760155421270,0.20784938,112480.0,112470.0,0.0301519]
[1760155421271,0.17780938,112480.0,112470.0,0.0301519]
[1760155421492,0.17780938,112480.0,112470.0,0.03206531]
[1760155422318,0.17780938,112480.0,112470.0,0.03306531]
[1760155422920,0.1874112,112490.0,112470.0,0.2108905]
[1760155423164,0.1874112,112490.0,112480.0,0.68743577]
[1760155423165,0.17852838,112490.0,112480.0,0.68743577]
[1760155423499,0.17852838,112490.0,112480.0,0.86524515]
[1760155424857,0.00072733,112490.0,112480.0,0.86524515]
[1760155425999,0.00024659,112490.0,112480.0,1.20524515]
[1760155426777,9.305e-05,112490.0,112480.0,1.22623742]
[1760155427100,9.305e-05,112490.0,112480.0,1.83403741]
[1760155427980,9.305e-05,112490.0,112480.0,1.83503741]
[1760155428189,0.21666519,112560.0,112540.0,0.17771258]
[1760155428372,0.21681599,112560.0,112550.0,0.65728387]
[1760155428578,0.52677599,112560.0,112550.0,0.65728387]
[1760155428886,0.19081267,112560.0,112550.0,1.05728387]
[1760155429285,0.26156267,112560.0,112550.0,1.05728387]
[1760155429507,0.60156267,112560.0,112550.0,1.05728387]
[1760155429750,0.60156267,112560.0,112530.0,0.68743577]
[1760155429751,0.17771459,112540.0,112530.0,0.68743577]
[1760155430134,0.17771459,112540.0,112530.0,1.08743577]
[1760155431527,0.15343572,112550.0,112530.0,1.08843577]
[1760155431733,0.17771459,112540.0,112530.0,1.08843577]
[1760155432222,0.30401459,112540.0,112530.0,1.08843577]
[1760155432423,0.17773038,112530.0,112520.0,0.65728387]
[1760155432630,0.24783038,112530.0,112520.0,0.65728387]
[1760155434410,0.30780038,112530.0,112520.0,0.65728387]
[1760155435905,0.64780038,112530.0,112520.0,0.65728387]
[1760155436340,0.65010767,112530.0,112520.0,0.65728387]
[1760155437572,0.17776197,112510.0,112500.0,0.65728387]
[1760155437774,0.24663197,112510.0,112500.0,0.65728387]
[1760155437976,0.30660197,112510.0,112500.0,0.65728387]
[1760155438281,0.30660197,112510.0,112500.0,1.05728387]
[1760155438695,0.30660197,112510.0,112500.0,0.65728387]
[1760155438924,0.30660197,112510.0,112500.0,0.65828387]
[1760155439117,0.20798197,112510.0,112500.0,0.65828387]
[1760155439462,0.24663197,112510.0,112500.0,0.65828387]
[1760155440296,0.20797935,112520.0,112500.0,0.86621354]
[1760155440503,0.17775935,112520.0,112510.0,0.65728387]
[1760155440694,0.17775935,112520.0,112510.0,0.83504584]
[1760155440891,0.18661689,112530.0,112520.0,0.17774617]
[1760155441115,0.00015075,112530.0,112520.0,0.20789807]
[1760155441358,0.15661451,112550.0,112530.0,0.0301519]
[1760155441561,0.17774353,112540.0,112530.0,0.68743577]
[1760155442212,0.17774353,112540.0,112530.0,0.86516615]
[1760155442415,0.17774353,112540.0,112530.0,0.68743577]
[1760155444614,0.12639451,112550.0,112530.0,0.86516615]
[1760155444870,0.91955725,112570.0,112550.0,0.2078507]
[1760155444871,0.18663725,112570.0,112550.0,0.2078507]
[1760155445074,0.17768301,112560.0,112550.0,0.68743577]
[1760155445282,0.18171969,112560.0,112550.0,0.68743577]
[1760155446196,0.18171969,112560.0,112550.0,0.65728387]
[1760155446583,0.18171969,112560.0,112550.0,1.05628387]
[1760155448056,0.18171969,112560.0,112550.0,1.08643577]
[1760155448539,0.25058969,112560.0,112550.0,1.05628387]
[1760155449148,0.31055969,112560.0,112550.0,1.05628387]
[1760155449542,0.25058969,112560.0,112550.0,0.65628387]
[1760155450112,0.21193969,112560.0,112550.0,0.65628387]
[1760155450312,0.25058969,112560.0,112550.0,0.65628387]
[1760155451275,0.18171969,112560.0,112550.0,0.65628387]
[1760155451487,0.18171969,112560.0,112550.0,0.83398267]
[1760155451702,0.18171969,112560.0,112550.0,0.86413457]
[1760155452573,0.00403668,112560.0,112550.0,0.86413457]
[1760155453740,0.00403668,112560.0,112550.0,1.26413457]
[1760155455054,0.18171969,112560.0,112550.0,1.26413457]
[1760155458867,0.18171969,112560.0,112550.0,1.08643577]
[1760155460519,0.00403668,112560.0,112550.0,1.26413457]
[1760155460937,0.00403668,112560.0,112550.0,1.60413457]
[1760155461487,0.00403668,112560.0,112550.0,1.62482447]
[1760155462501,0.00081622,112560.0,112550.0,1.64982446]